bitfinex-derivatives/quotes_ETHF0:USTF0_20250116
["timestamp","ask_amount","ask_price","bid_price","bid_amount"]
[1737038077373,0.60152,3325.8,3325.5,0.60154]
[1737038077677,0.2972664,3325.5,3325.4,0.60156]
[1737038077874,0.2972664,3325.4,3325.2,3.2078]
[1737038078081,0.60152,3325.8,3325.5,0.60155]
[1737038078275,0.60152,3325.8,3325.2,3.2078]
[1737038078276,0.2972664,3325.8,3325.2,3.2078]
[1737038078470,3.2078,3326.4,3325.6,3.2078]
[1737038078672,0.2972664,3325.8,3325.7,0.60152]
[1737038079168,0.60149,3325.9,3325.7,0.60152]
[1737038079374,0.2972664,3326.0,3325.6,3.2078]
[1737038079568,0.2972664,3325.8,3325.6,3.2078]
[1737038079779,1.50333,3326.8,3325.6,3.2078]
[1737038079780,0.2972664,3326.0,3325.6,3.2078]
[1737038080075,0.8986764,3326.4,3326.2,0.60143]
[1737038080277,0.2972664,3326.4,3326.2,3.2078]
[1737038080475,0.2972664,3326.4,3326.3,0.60142]
[1737038080673,3.2078,3327.2,3326.2,3.2078]
[1737038080877,0.2972664,3326.3,3326.2,3.80923]
[1737038081180,0.2972664,3326.3,3326.2,3.2078]
[1737038081376,0.8986864,3326.3,3326.2,3.2078]
[1737038081575,0.2972664,3326.3,3326.2,3.80923]
[1737038081771,1.07276,3327.2,3326.3,1.50355]
[1737038081973,0.2972664,3327.1,3327.0,0.60129]
[1737038082172,0.2972664,3327.3,3327.2,0.60125]
[1737038082370,0.9697,3328.2,3327.2,3.2078]
[1737038082574,0.2972664,3327.4,3327.3,41.40123]
[1737038082776,0.2972664,3327.6,3327.3,40.8]
[1737038083076,0.2972664,3327.9,3327.6,0.60117]
[1737038083275,0.2972664,3327.9,3327.6,3.2078]
[1737038083583,3.2078,3329.8,3327.8,3.30966557]
[1737038083883,0.2972664,3329.2,3329.1,0.6009]
[1737038084083,0.2972664,3329.2,3329.1,3.8087]
[1737038084586,0.60083,3329.6,3329.1,3.8087]
[1737038084587,0.60076,3330.0,3329.1,3.2078]
[1737038084794,0.2972664,3329.6,3329.5,3.80864]
[1737038084981,3.2078,3330.5,3329.5,3.2078]
[1737038085186,0.2972664,3329.6,3329.5,3.2078]
[1737038085679,0.60089,3329.2,3328.8,1.374]
[1737038085880,0.2972664,3329.0,3328.9,0.60095]
[1737038086086,0.2972664,3329.1,3328.8,1.374]
[1737038086382,0.2972664,3329.6,3328.8,1.374]
[1737038086590,0.2972664,3329.6,3329.5,0.60084]
[1737038086780,0.00339657,3329.6,3329.5,0.60084]
[1737038088182,3.2078,3330.6,3329.6,2.10286]
[1737038088382,0.2972664,3330.3,3330.2,0.60071]
[1737038088592,0.2972664,3330.6,3330.1,3.2078]
[1737038088792,3.2078,3331.6,3330.5,3.2078]
[1737038088993,0.2972664,3331.1,3331.0,3.2078]
[1737038089304,0.60031,3332.5,3332.0,0.60038]
[1737038089490,1.05274,3332.9,3332.3,3.80812]
[1737038089698,0.60027,3332.7,3332.3,3.2078]
[1737038090003,0.2972664,3332.5,3332.4,0.60032]
[1737038090196,3.2078,3333.4,3332.3,3.2078]
[1737038090398,0.2972664,3332.7,3332.5,0.60029]
[1737038090697,0.2972664,3332.7,3332.4,0.6003]
[1737038090894,0.2972664,3332.7,3332.3,3.2078]
[1737038091095,0.2972664,3332.4,3332.3,3.2078]
[1737038091298,0.2972664,3332.4,3331.7,3.2078]
[1737038091600,0.2972664,3332.2,3332.1,3.80815]
[1737038092191,0.60017,3333.2,3332.6,0.60028]
[1737038092401,3.2078,3333.4,3332.5,3.2078]
[1737038092402,0.2972664,3332.7,3332.5,3.2078]
[1737038092591,0.2972664,3332.7,3332.6,0.60028]
[1737038092794,3.2078,3333.4,3333.0,0.60019]
[1737038092992,3.2078,3333.4,3332.5,3.2078]
[1737038093199,3.2078,3333.4,3332.1,3.2078]
[1737038093200,0.2972664,3332.6,3332.1,3.2078]
[1737038093495,0.2972664,3332.3,3332.1,3.2078]
[1737038093695,0.2972664,3332.3,3332.1,3.80817]
[1737038093899,0.2972664,3332.3,3331.8,1.373]
[1737038094099,0.2972664,3331.9,3331.7,3.80823]
[1737038094299,0.2972664,3331.9,3331.7,5.18123]
[1737038094496,0.2972664,3331.9,3330.9,1.50145]
[1737038094497,0.2972664,3331.8,3331.3,3.2078]
[1737038094795,0.60048,3331.5,3331.3,3.2078]
[1737038094997,0.8977664,3331.4,3331.3,3.2078]
[1737038095197,0.6006,3330.8,3330.7,3.2078]
[1737038095395,0.8978664,3330.8,3330.7,3.2078]
[1737038095998,1.06532,3331.3,3330.7,3.2078]
[1737038096301,0.2972664,3331.0,3330.9,0.60057]
[1737038096495,0.2972664,3331.0,3330.7,3.2078]
[1737038096699,0.4648,3331.3,3330.8,0.6006]
[1737038096894,0.2972664,3331.1,3330.7,3.2078]
[1737038097104,0.2972664,3331.1,3330.9,0.60057]
[1737038097397,0.2972664,3331.1,3330.7,3.2078]
[1737038097604,0.2972664,3331.1,3331.0,0.60057]
[1737038097992,0.60039,3332.0,3331.5,0.60047]
[1737038098196,0.2972664,3331.8,3331.7,3.80824]
[1737038098398,0.2972664,3332.2,3331.7,3.2078]
[1737038098593,0.2972664,3332.2,3332.1,3.2078]
[1737038098802,0.6003,3332.5,3332.1,3.2078]
[1737038099004,0.60028,3332.6,3332.2,0.60035]
[1737038099202,0.2972664,3332.2,3332.1,3.80817]
[1737038099405,0.2972664,3332.2,3332.1,3.2078]
[1737038099606,0.2972664,3332.2,3331.8,0.60041]
[1737038099900,0.2972664,3331.9,3331.8,0.60042]
[1737038100102,0.60031,3332.5,3332.0,0.60038]
[1737038100303,0.2972664,3332.5,3332.3,3.2078]
[1737038100604,4.6464,3333.4,3332.3,3.2078]
[1737038100807,4.6464,3333.4,3331.8,45.61070557]
[1737038100808,1.49974,3334.8,3333.1,3.2078]
[1737038101104,0.60001,3334.1,3333.7,3.2078]
[1737038101303,0.4474,3334.4,3333.7,3.2078]
[1737038101304,0.2972664,3334.0,3333.7,3.2078]
[1737038101502,3.2078,3334.6,3334.3,0.59996]
[1737038101703,0.2972664,3334.6,3334.5,3.2078]
[1737038102409,0.2972664,3334.6,3334.5,3.80774]
[1737038102612,0.2972664,3334.6,3334.4,0.59995]
[1737038102798,0.2972664,3334.6,3334.5,0.59993]
[1737038103109,0.2972664,3334.6,3334.5,3.80774]
[1737038103798,0.2972664,3334.6,3334.5,3.2078]
[1737038104205,0.60002,3334.1,3333.8,3.2078]
[1737038104408,0.2972664,3334.2,3333.8,3.2078]
[1737038104709,0.60013,3333.5,3333.1,4.5798]
[1737038104907,1.49997,3334.3,3333.1,4.5798]
[1737038104908,3.2078,3334.3,3333.1,5.17999]
[1737038105105,0.2972664,3333.5,3333.2,0.60017]
[1737038105301,0.2972664,3333.2,3333.1,5.17999]
[1737038105703,0.9363,3334.4,3333.1,4.5798]
[1737038105907,0.2972664,3334.4,3334.3,3.2078]
[1737038106103,0.59981,3335.3,3334.8,0.59987]
[1737038106412,0.59982,3335.2,3335.0,3.2078]
[1737038106716,3.2078,3335.8,3335.0,3.2078]
[1737038107012,0.2972664,3335.1,3334.9,3.2078]
[1737038107201,3.2078,3335.8,3334.9,3.2078]
[1737038107500,0.2972664,3335.0,3334.9,3.2078]
[1737038107705,0.2972664,3335.0,3334.9,3.80766]
[1737038108010,0.2972664,3335.0,3334.9,3.2078]
[1737038108508,0.2972664,3335.0,3334.9,3.80766]
[1737038108907,3.6552,3335.4,3334.5,3.2078]
[1737038109313,0.4474,3335.4,3334.9,3.2078]
[1737038110013,0.59981,3335.3,3334.9,3.80765]
[1737038110209,0.4474,3335.4,3334.9,3.2078]
[1737038110417,0.59961,3336.4,3335.4,0.59977]
[1737038110620,0.59961,3336.4,3335.3,6.51746557]
[1737038110621,0.5996,3336.4,3336.0,3.2078]
[1737038110811,0.5996,3336.4,3335.6,3.2078]
[1737038111006,3.2078,3336.0,3335.2,3.2078]
[1737038111214,3.2078,3336.0,3334.8,3.2078]
[1737038111517,0.59978,3335.4,3334.8,3.2078]
[1737038111817,0.9573,3335.9,3335.2,3.2078]
[1737038111818,0.59977,3335.5,3335.2,3.2078]
[1737038112217,0.5997,3335.8,3335.2,3.80759]
[1737038112419,0.9573,3335.9,3335.2,3.2078]
[1737038112717,0.59975,3335.6,3335.2,3.2078]
[1737038112914,0.59977,3335.5,3335.2,3.2078]
[1737038113618,0.4875,3335.9,3335.6,0.59973]
[1737038113815,1.49885,3336.8,3335.7,3.2078]
[1737038114014,3.2078,3337.1,3336.1,3.2078]
[1737038114216,0.59963,3336.2,3335.8,1.376]
[1737038114608,1.49883,3336.8,3335.7,3.2078]
[1737038114810,3.2078,3336.1,3335.2,3.2078]
[1737038115218,1.49913,3336.1,3335.2,3.2078]
[1737038115417,3.2078,3336.6,3335.2,3.2078]
[1737038115619,0.59972,3335.7,3335.6,3.2078]
[1737038115923,3.2078,3336.6,3335.6,3.2078]
[1737038116119,0.59972,3335.7,3335.6,3.2078]
[1737038116327,0.59974,3335.6,3335.5,1.376]
[1737038116718,3.2078,3336.2,3335.2,3.2078]
[1737038117020,0.59979,3335.3,3335.2,3.2078]
[1737038117517,0.59987,3334.9,3334.8,3.2078]
[1737038117913,0.5999,3334.7,3334.6,1.376]
[1737038118316,1.36739032,3335.2,3334.2,1.376]
[1737038118515,0.60001,3334.1,3334.0,1.376]
[1737038118720,0.60003,3334.0,3333.9,3.2078]
[1737038119121,0.4936,3334.6,3333.9,3.2078]
[1737038119920,0.60003,3334.0,3333.9,3.2078]
[1737038120324,0.60005,3333.9,3333.6,0.60009]
[1737038120527,0.6,3334.2,3333.9,0.60004]
[1737038120724,1.49971,3334.9,3334.1,0.6]
[1737038120725,0.59997,3334.4,3334.1,0.6]
[1737038121025,0.59989,3334.8,3334.5,0.59994]
[1737038121326,0.6,3334.2,3334.0,3.2078]
[1737038121719,3.2078,3335.0,3334.0,3.2078]
[1737038121919,0.59993,3334.6,3334.5,3.2078]
[1737038122216,3.2078,3335.0,3334.5,3.2078]
[1737038122522,0.59984,3335.1,3334.9,3.2078]
[1737038122924,0.4632,3335.4,3334.9,3.2078]
[1737038123228,0.59985,3335.0,3334.9,3.2078]
[1737038123424,3.2078,3335.1,3334.3,3.2078]
[1737038123626,0.59991,3334.7,3334.4,0.59995]
[1737038123922,0.59988,3334.9,3334.5,0.59992]
[1737038124122,0.59989,3334.8,3334.7,3.2078]
[1737038124524,0.4632,3335.4,3334.7,3.2078]
[1737038124729,0.4632,3335.4,3334.7,3.80769]
[1737038124917,0.4632,3335.4,3335.1,3.2078]
[1737038125116,2.99797,3336.5,3335.3,0.59978]
[1737038125117,3.2078,3336.5,3335.3,0.59978]
[1737038125424,0.59974,3335.6,3335.5,3.2078]
[1737038125923,0.59973,3335.7,3335.5,44.0078]
[1737038126127,0.59972,3335.8,3335.5,3.80755]
[1737038126328,6.67417,3337.0,3335.5,3.2078]
[1737038126523,2.41022,3336.9,3335.9,3.2078]
[1737038126829,0.59958,3336.5,3335.9,1.376]
[1737038127022,0.59967,3336.0,3335.9,1.376]
[1737038127624,3.2078,3336.5,3335.7,3.2078]
[1737038127929,3.2078,3336.5,3335.2,3.2078]
[1737038128121,0.59981,3335.3,3335.2,3.2078]
[1737038128524,1.49909,3336.2,3335.4,0.59977]
[1737038128831,1.49909,3336.2,3335.6,3.2078]
[1737038128832,0.59972,3335.7,3335.6,3.2078]
[1737038129125,0.59972,3335.7,3335.1,1.376]
[1737038129126,3.2078,3336.1,3335.2,3.2078]
[1737038129425,4.70732,3335.3,3334.4,2.34719419]
[1737038129631,0.59994,3334.5,3334.4,2.68861428]
[1737038129828,0.59994,3334.5,3334.4,1.31261428]
[1737038130028,0.60004,3333.9,3333.8,3.2078]
[1737038130228,1.50001,3334.2,3333.4,6.9590777]
[1737038130425,1.49989,3334.4,3333.7,3.2078]
[1737038130628,0.4885,3334.7,3334.2,3.2078]
[1737038130824,0.59997,3334.3,3334.2,3.2078]
[1737038131029,0.59994,3334.6,3334.3,0.59997]
[1737038131332,0.59997,3334.3,3334.2,3.2078]
[1737038131724,1.49971,3334.9,3334.2,3.2078]
[1737038131926,0.59997,3334.3,3334.2,3.2078]
[1737038133123,3.30966557,3334.8,3333.4,0.9734439]
[1737038133329,1.4999,3334.4,3333.3,4.5838]
[1737038133632,0.60013,3333.4,3333.3,3.2078]
[1737038134134,0.60017,3333.2,3333.1,6.9590777]
[1737038134427,3.80797,3333.2,3333.1,6.9590777]
[1737038134832,8.80797,3333.2,3333.1,4.0872377]
[1737038135132,8.80797,3333.2,3332.9,9.27674752]
[1737038135133,0.60033,3332.3,3332.2,2.6751977]
[1737038135935,3.80813,3332.3,3332.2,2.6751977]
[1737038136234,1.50088,3332.2,3331.3,3.2078]
[1737038136429,0.60037,3332.1,3331.3,3.2078]
[1737038136636,0.60047,3331.6,3331.3,3.2078]
[1737038136932,0.60049,3331.5,3330.9,13.974]
[1737038137130,1.50107,3331.8,3330.8,3.2078]
[1737038137323,3.2078,3331.6,3330.8,3.2078]
[1737038137627,4.709,3331.6,3330.3,3.2078]
[1737038137829,0.60068,3330.4,3330.3,3.2078]
[1737038138430,0.60069,3330.3,3330.2,9.27674752]
[1737038138622,0.60068,3330.4,3330.2,9.27674752]
[1737038138828,3.2078,3331.2,3329.9,3.2078]
[1737038139027,3.2078,3330.8,3329.9,3.2078]
[1737038139532,0.60063,3330.7,3330.2,0.6007]
[1737038139732,3.2078,3331.2,3330.3,3.2078]
[1737038140141,0.60065,3330.6,3330.3,3.2078]
[1737038140328,3.2078,3331.2,3330.3,3.2078]
[1737038140529,6.51746557,3330.8,3329.9,3.2078]
[1737038140735,0.60075,3330.0,3329.7,40.8]
[1737038141029,0.60074,3330.1,3329.7,40.8]
[1737038141238,3.2078,3330.3,3329.5,3.2078]
[1737038141427,0.60092,3329.1,3328.9,3.2078]
[1737038141634,3.30966557,3329.8,3328.9,3.2078]
[1737038141835,0.4956,3329.7,3328.9,3.2078]
[1737038142225,0.60093,3329.1,3328.5,44.0078]
[1737038142426,0.60098,3328.8,3328.5,3.2078]
[1737038142627,3.2078,3329.3,3328.5,3.2078]
[1737038142628,0.60095,3328.9,3328.5,3.2078]
[1737038143138,0.60093,3329.0,3328.5,3.2078]
[1737038143329,6.51746557,3329.3,3328.5,3.2078]
[1737038143535,3.30966557,3328.8,3327.5,1.386]
[1737038143734,3.2078,3328.2,3327.4,3.2078]
[1737038143927,3.80888,3328.2,3327.6,0.60118]
[1737038144130,3.2078,3328.2,3327.4,3.2078]
[1737038144437,0.60104,3328.5,3327.9,0.60112]
[1737038144745,0.60114,3327.9,3327.4,3.809]
[1737038144926,3.30966557,3328.3,3327.4,3.2078]
[1737038145134,3.2078,3327.5,3326.4,3.2078]
[1737038145433,3.2078,3327.5,3326.2,12.607]
[1737038145434,3.30966557,3326.6,3325.9,3.2078]
[1737038145644,3.2078,3326.5,3325.9,3.2078]
[1737038145938,3.80919,3326.5,3325.9,3.2078]
[1737038146133,3.2078,3326.5,3325.9,3.2078]
[1737038147238,3.2078,3326.1,3325.6,40.8]
[1737038147536,0.60147,3326.0,3325.3,0.60159]
[1737038147926,3.2078,3326.1,3325.7,0.60152]
[1737038148131,3.2078,3326.1,3325.4,40.8]
[1737038148132,0.6014,3326.5,3325.9,0.60148]
[1737038148333,6.51746557,3326.6,3325.4,40.8]
[1737038148531,6.51746557,3326.6,3325.6,0.60154]
[1737038148738,6.51746557,3326.6,3325.4,40.8]
[1737038149238,3.2078,3326.6,3325.8,3.2078]
[1737038149434,0.60139,3326.5,3325.8,3.2078]
[1737038149636,0.60139,3326.5,3325.9,0.60149]
[1737038150031,3.2078,3326.6,3325.8,3.8093]
[1737038150232,0.60142,3326.3,3325.8,3.2078]
[1737038150431,3.2078,3326.6,3325.8,3.2078]
[1737038150648,3.2078,3326.6,3325.3,1.387]
[1737038150649,3.2078,3326.1,3325.3,1.387]
[1737038150936,0.60154,3325.7,3325.2,0.6016]
[1737038151142,3.2078,3325.7,3324.9,3.2078]
[1737038151435,0.60148,3326.0,3325.5,0.60155]
[1737038151936,3.2078,3326.6,3325.8,3.2078]
[1737038152140,6.51746557,3328.0,3326.3,3.2078]
[1737038152335,8.02005557,3328.5,3327.4,3.2078]
[1737038152538,0.60116,3327.8,3327.4,0.60121]
[1737038152740,6.51746557,3328.5,3326.8,4.5948]
[1737038152943,1.50265,3328.3,3326.8,4.5948]
[1737038153243,0.60118,3327.7,3327.3,0.60123]
[1737038153447,3.2078,3328.1,3327.2,3.2078]
[1737038153834,0.60124,3327.3,3327.2,3.2078]
[1737038154235,0.60119,3327.6,3327.2,3.80904]
[1737038154435,3.30966557,3328.0,3327.2,3.2078]
[1737038154734,0.6012,3327.5,3327.2,3.2078]
[1737038154935,0.60125,3327.2,3326.9,0.6013]
[1737038155140,0.60121,3327.5,3327.1,0.60126]
[1737038155434,3.2078,3327.7,3326.8,3.2078]
[1737038155634,3.30966557,3328.0,3326.2,1.388]
[1737038155635,3.30966557,3328.0,3327.2,3.2078]
[1737038155839,0.60113,3327.9,3327.6,0.60118]
[1737038156040,3.2078,3328.1,3327.2,3.2078]
[1737038156242,0.60119,3327.6,3327.3,0.60123]
[1737038156539,3.2078,3328.1,3327.2,3.2078]
[1737038156735,6.51746557,3328.5,3327.6,3.2078]
[1737038156931,3.2078,3328.5,3328.0,3.2078]
[1737038157136,0.60099,3328.7,3328.0,3.2078]
[1737038157341,3.2078,3329.1,3328.4,3.2078]
[1737038157649,0.60099,3328.7,3328.4,3.80884]
[1737038157941,0.60095,3328.9,3328.6,0.60099]
[1737038158142,3.2078,3329.1,3328.4,3.2078]
[1737038158440,1.50237,3328.9,3328.0,3.2078]
[1737038158649,3.30966557,3329.0,3328.0,3.2078]
[1737038158942,0.60108,3328.2,3328.0,3.2078]
[1737038159142,1.50242,3328.8,3328.0,3.2078]
[1737038159538,0.60108,3328.2,3328.0,3.80891]
[1737038159747,0.60105,3328.4,3328.0,3.80889]
[1737038159938,0.60106,3328.3,3328.0,3.8089]
[1737038160340,0.60109,3328.1,3327.6,3.2078]
[1737038160540,0.60127,3327.1,3327.0,3.2078]
[1737038160738,0.60114,3327.8,3327.0,3.80908]
[1737038160942,3.2078,3327.9,3327.4,3.2078]
[1737038161336,3.2078,3327.9,3327.0,3.2078]
[1737038161944,3.2078,3327.8,3327.0,3.2078]
[1737038162134,0.6012,3327.5,3327.4,3.2078]
[1737038162339,0.60119,3327.6,3327.4,3.2078]
[1737038162540,0.60117,3327.7,3327.4,3.80901]
[1737038162739,0.60117,3327.7,3327.4,3.2078]
[1737038163041,0.60117,3327.7,3327.4,3.809]
[1737038163240,3.6625,3328.4,3327.8,0.60113]
[1737038163241,0.6011,3328.1,3327.8,0.60113]
[1737038163434,1.50264,3328.3,3327.4,3.2078]
[1737038163735,0.6012,3327.5,3327.4,3.2078]
[1737038164445,0.60129,3327.1,3327.0,3.2078]
[1737038165444,3.2078,3327.6,3327.0,3.2078]
[1737038165747,0.60122,3327.4,3327.0,3.2078]
[1737038165946,1.50276,3328.1,3327.0,3.2078]
[1737038165947,3.2078,3328.1,3327.0,3.2078]
[1737038166147,3.2078,3328.1,3327.5,3.2078]
[1737038166442,3.6618,3328.6,3327.9,3.2078]
[1737038166643,3.30966557,3329.4,3328.3,3.2078]
[1737038166644,0.4728,3329.2,3328.3,3.2078]
[1737038166842,0.60092,3329.1,3328.7,3.2078]
[1737038167046,3.2078,3329.4,3328.7,3.2078]
[1737038167348,3.2078,3329.4,3328.8,0.60095]
[1737038167641,0.4728,3330.1,3329.1,3.2078]
[1737038167842,0.60079,3329.8,3329.6,0.60082]
[1737038168040,0.4728,3330.1,3329.5,3.2078]
[1737038168238,0.4728,3330.1,3329.5,3.80863]
[1737038168441,0.60082,3329.6,3329.5,3.80863]
[1737038168638,0.60082,3329.6,3329.5,3.2078]
[1737038169349,0.4728,3330.1,3329.3,0.60087]
[1737038169350,1.50189,3330.0,3329.3,0.60087]
[1737038169542,2.10269,3329.9,3329.1,3.8087]
[1737038169740,0.60089,3329.2,3329.1,3.2078]
[1737038170142,0.60089,3329.2,3328.7,0.60098]
[1737038170143,6.51746557,3329.4,3328.7,3.2078]
[1737038170448,0.60116,3327.7,3327.6,3.2078]
[1737038170745,0.60116,3327.7,3327.6,3.80898]
[1737038170964,0.60116,3327.7,3327.6,3.2078]
[1737038171249,3.2078,3327.8,3327.1,3.2078]
[1737038171446,0.60127,3327.2,3327.0,1.98228]
[1737038171846,3.2078,3327.9,3327.0,1.381]
[1737038172045,0.6012,3327.6,3327.3,0.60122]
[1737038172350,0.60108,3328.2,3328.0,0.6011]
[1737038172654,3.2078,3328.5,3328.4,0.60104]
[1737038172844,3.2078,3328.9,3328.1,3.2078]
[1737038173045,0.60097,3328.8,3328.6,0.60099]
[1737038173352,0.60107,3328.3,3328.1,0.60109]
[1737038173550,3.2078,3328.9,3327.8,1.381]
[1737038173853,3.2078,3328.1,3327.2,3.2078]
[1737038174154,3.2078,3328.1,3325.6,3.00769]
[1737038174155,0.60109,3328.1,3327.9,0.60112]
[1737038174443,0.4728,3328.8,3328.0,3.2078]
[1737038174850,0.4728,3328.8,3328.2,0.60107]
[1737038175149,0.4728,3328.8,3328.0,3.2078]
[1737038175346,3.2078,3328.9,3328.0,3.2078]
[1737038175645,1.50242,3328.8,3328.0,3.2078]
[1737038175846,0.60103,3328.5,3328.4,3.2078]
[1737038176043,0.60094,3329.0,3328.4,3.2078]
[1737038176244,3.2078,3329.4,3328.4,3.2078]
[1737038176450,0.60094,3329.0,3328.4,3.2078]
[1737038176647,0.60088,3329.3,3328.8,3.2078]
[1737038176847,5.35060557,3329.9,3329.2,3.2078]
[1737038176848,0.539,3329.9,3329.2,3.2078]
[1737038177151,1.5017,3330.4,3329.6,3.2078]
[1737038177347,0.6008,3329.7,3329.6,3.2078]
[1737038179042,1.50174,3330.3,3329.6,3.2078]
[1737038179244,0.6008,3329.7,3329.6,3.2078]
[1737038179650,3.2078,3330.1,3329.6,3.2078]
[1737038179848,0.6008,3329.7,3329.6,3.80861]
[1737038180048,0.60079,3329.8,3329.7,0.6008]
[1737038180242,0.6008,3329.7,3329.6,3.2078]
[1737038180740,3.2078,3330.1,3329.6,3.2078]
[1737038180941,3.2078,3329.7,3328.7,1.3147216]
[1737038181146,0.60096,3328.8,3328.7,1.3147216]
[1737038181347,0.60096,3328.8,3328.3,7.82337707]
[1737038181348,6.51746557,3328.9,3328.3,7.82337707]
[1737038181540,0.60104,3328.4,3328.3,7.82337707]
[1737038181745,7.11850557,3328.4,3328.3,3.13633707]
[1737038181949,0.60111,3328.0,3327.9,8.34093752]
[1737038182154,3.80891,3328.0,3327.9,2.89248752]
[1737038182351,0.60131,3326.9,3326.8,0.39868752]
[1737038182652,7.11877557,3326.9,3326.8,0.39868752]
[1737038183146,3.91097557,3326.9,3326.8,0.39868752]
[1737038183348,7.11877557,3326.9,3326.8,0.39868752]
[1737038183753,6.51746557,3326.9,3325.4,2.06344]
[1737038183957,3.2078,3327.3,3326.1,3.2078]
[1737038184752,4.71092,3327.3,3326.4,0.60139]
[1737038184954,2.88403,3327.5,3326.1,3.80924]
[1737038184955,3.2078,3326.8,3326.1,3.80924]
[1737038185160,3.2078,3326.8,3326.0,3.2078]
[1737038185347,3.2078,3326.8,3326.4,3.2078]
[1737038185547,3.2078,3327.8,3326.5,1.50344]
[1737038185757,3.2078,3328.2,3327.1,3.2078]
[1737038185952,3.2078,3328.2,3327.2,1.382]
[1737038185953,0.60124,3327.3,3327.2,1.382]
[1737038186156,3.2078,3327.8,3326.6,1.1301]
[1737038186351,6.51746557,3327.8,3326.6,1.1301]
[1737038186555,0.60128,3327.1,3326.8,0.60132]
[1737038186755,0.60134,3326.7,3326.5,3.7393]
[1737038186951,0.60133,3326.8,3326.6,0.60136]
[1737038187260,0.6013,3327.0,3326.8,0.60132]
[1737038187556,4.71072,3327.7,3326.7,3.2078]
[1737038187557,0.60125,3327.3,3326.7,3.2078]
[1737038187852,3.2078,3327.7,3326.7,3.2078]
[1737038188047,3.80897,3327.7,3327.1,3.2078]
[1737038188259,3.80897,3327.7,3327.3,0.60123]
[1737038188556,0.60121,3327.5,3327.1,3.80906]
[1737038188755,3.2078,3327.7,3327.1,3.2078]
[1737038188954,3.2078,3327.7,3326.8,41.3804]
[1737038189156,3.2078,3327.7,3326.8,0.5804]
[1737038189358,0.60125,3327.3,3327.0,0.60129]
[1737038189555,3.80897,3327.7,3327.5,0.6012]
[1737038189764,3.2078,3328.2,3327.6,3.2078]
[1737038189958,2.33514654,3328.6,3328.0,3.2078]
[1737038190260,3.2078,3328.9,3328.0,3.2078]
[1737038190665,0.60109,3328.1,3328.0,3.2078]
[1737038190855,3.2078,3328.9,3328.0,3.2078]
[1737038191049,0.60109,3328.1,3328.0,3.2078]
[1737038191251,3.2078,3328.5,3327.6,1.382]
[1737038191451,1.5026,3328.4,3327.6,1.382]
[1737038191656,3.2078,3328.5,3327.6,1.382]
[1737038191863,3.2078,3328.5,3327.8,0.60114]
[1737038192059,6.51746557,3328.1,3327.5,3.2078]
[1737038192259,0.6012,3327.5,3327.3,0.60122]
[1737038192463,6.51746557,3328.1,3327.0,4.5898]
[1737038192765,1.50289,3327.8,3327.0,3.2078]
[1737038192957,3.2078,3328.0,3327.0,3.2078]
[1737038193267,0.60114,3327.9,3327.7,0.60115]
[1737038193967,1.50264,3328.3,3327.4,3.2078]
[1737038194167,0.60117,3327.7,3327.5,0.6012]
[1737038194367,5.54946016,3328.4,3327.4,3.2078]
[1737038194561,3.2078,3328.4,3327.4,3.2078]
[1737038194760,3.2078,3328.0,3327.4,3.2078]
[1737038194961,0.60119,3327.6,3327.4,3.80901]
[1737038195161,0.6012,3327.5,3327.4,3.2078]
[1737038195560,3.2078,3328.0,3327.5,0.6012]
[1737038195860,0.60116,3327.8,3327.6,0.60118]
[1737038196062,3.2078,3328.0,3327.9,0.60113]
[1737038196259,3.2078,3328.0,3327.4,3.2078]
[1737038196566,2.34166016,3328.4,3327.8,3.2078]
[1737038196762,2.34166016,3328.4,3327.4,3.2078]
[1737038196955,0.60119,3327.6,3327.4,3.809]
[1737038197161,1.50259,3328.5,3327.4,3.2078]
[1737038197357,6.51746557,3328.6,3327.4,3.2078]
[1737038197358,0.6012,3327.5,3327.4,3.2078]
[1737038197759,0.60131,3326.9,3326.8,0.5804]
[1737038197965,3.2078,3327.2,3326.7,3.2078]
[1737038198168,0.60133,3326.8,3326.7,3.2078]
[1737038198365,0.60136,3326.6,3326.5,0.5315]
[1737038198671,0.60136,3326.6,3326.4,7.03914927]
[1737038198672,0.60138,3326.5,3326.4,7.03914927]
[1737038199272,3.30966557,3326.6,3325.6,3.2078]
[1737038199569,3.2078,3326.8,3325.6,3.2078]
[1737038199767,0.60144,3326.2,3326.1,0.60144]
[1737038199966,0.60149,3325.9,3325.8,3.2078]
[1737038200464,0.60149,3325.9,3325.8,3.80931]
[1737038200763,6.51746557,3326.6,3325.8,3.80931]
[1737038200764,0.60142,3326.3,3326.2,0.60142]
[1737038200962,3.2078,3326.6,3326.3,0.60142]
[1737038200963,0.60141,3326.4,3326.3,0.60142]
[1737038201364,0.60148,3326.0,3325.8,3.2078]
[1737038201561,1.50346,3326.5,3325.5,0.60155]
[1737038201759,0.60154,3325.6,3325.4,3.80937]
[1737038201962,0.60155,3325.6,3325.4,3.80938]
[1737038202158,0.60154,3325.6,3325.4,3.80938]
[1737038202659,0.60154,3325.6,3325.4,3.80937]
[1737038202660,0.60155,3325.6,3325.4,3.80937]
[1737038203367,0.60156,3325.5,3325.4,3.2078]
[1737038203870,4.7114,3326.2,3325.4,3.2078]
[1737038204072,6.51746557,3326.6,3325.8,3.2078]
[1737038204262,2.34166016,3326.7,3325.1,0.5498]
[1737038204263,2.34166016,3326.7,3326.5,3.2078]
[1737038204473,2.34166016,3326.7,3326.6,0.60136]
[1737038204662,2.34166016,3326.7,3326.5,3.2078]
[1737038204663,0.60136,3326.6,3326.5,3.2078]
[1737038204864,2.34166016,3326.7,3326.6,0.60136]